lending/lending_fUSD_20250224
["ID","MTS","AMOUNT","RATE_DAILY","PERIOD"]
[354322142,1740408683338,-500.0,0.00017013,2]
[354322143,1740408683347,-500.0,0.00017013,2]
[354322144,1740408683357,-1831.82,0.00017013,2]
[354322145,1740408683367,-500.0,0.00017013,2]
[354322146,1740408683378,-558.93,0.00017013,2]
[354322147,1740408683388,-853.69,0.00017013,2]
[354322148,1740408683398,-2226.08,0.00017013,2]
[354322149,1740408683409,-1727.17,0.00017013,2]
[354322150,1740408683419,-1260.45,0.00017013,2]
[354322151,1740408683429,-1732.9,0.00017013,2]
[354322152,1740408683440,-837.39,0.00017013,2]
[354322153,1740408683450,-500.0,0.00017013,2]
[354322154,1740408683459,-1781.49,0.00017013,2]
[354322155,1740408683470,-2820.67,0.00017013,2]
[354322156,1740408683480,-1814.26,0.00017013,2]
[354322157,1740408683491,-1378.99,0.00017013,2]
[354322158,1740408683501,-542.06,0.00017013,2]
[354322159,1740408683511,-500.0,0.00017013,2]
[354322160,1740408683521,-523.78906119,0.00017013,2]
[354322161,1740408683531,-503.68,0.00017013,2]
[354322162,1740408683541,-902.17,0.00017013,2]
[354322163,1740408683555,-1113.82,0.00017013,2]
[354322164,1740408683565,-1020.41,0.00017013,2]
[354322165,1740408683575,-855.0,0.00017013,2]
[354322166,1740408683585,-2365.06,0.00017013,2]
[354322167,1740408683594,-2236.0,0.00017013,2]
[354322168,1740408683731,-1788.53,0.00017013,2]
[354322169,1740408683742,-614.29,0.00017013,2]
[354322170,1740408683752,-670.7,0.00017013,2]
[354322171,1740408683762,-500.0,0.00017013,2]
[354322172,1740408683772,-3047.91,0.00017013,2]
[354322173,1740408683781,-500.0,0.00017013,2]
[354322174,1740408683791,-2393.53,0.00017013,2]
[354322175,1740408683803,-813.27,0.00017013,2]
[354322176,1740408683813,-500.0,0.00017013,2]
[354322177,1740408683822,-2168.8,0.00017013,2]
[354322178,1740408683831,-500.0,0.00017013,2]
[354322179,1740408683841,-2139.66,0.00017013,2]
[354322180,1740408683851,-500.0,0.00017013,2]
[354322181,1740408683861,-500.0,0.00017013,2]
[354322182,1740408683870,-704.57,0.00017013,2]
[354322183,1740408683880,-500.0,0.00017013,2]
[354322184,1740408683890,-926.55,0.00017013,2]
[354322185,1740408683899,-2142.33,0.00017013,2]
[354322186,1740408683909,-1890.91,0.00017013,2]
[354322187,1740408683919,-500.0,0.00017013,2]
[354322188,1740408683929,-1950.51,0.00017013,2]
[354322189,1740408683939,-500.0,0.00017013,2]
[354322190,1740408683949,-500.0,0.00017013,2]
[354322191,1740408683959,-560.47,0.00017013,2]
[354322192,1740408683969,-609.16,0.00017013,2]
[354322193,1740408683979,-1914.76,0.00017013,2]
[354322194,1740408683989,-565.85,0.00017013,2]
[354322195,1740408683999,-515.26,0.00017013,2]
[354322196,1740408684010,-910.63,0.00017013,2]
[354322197,1740408684020,-500.0,0.00017013,2]
[354322198,1740408684031,-2295.31,0.00017013,2]
[354322199,1740408684041,-500.0,0.00017013,2]
[354322200,1740408684054,-655.3,0.00017013,2]
[354322201,1740408684064,-544.29,0.00017013,2]
[354322202,1740408684074,-2211.12,0.00017013,2]
[354322203,1740408684083,-1974.62,0.00017013,2]
[354322204,1740408684094,-1141.38,0.00017013,2]
[354322205,1740408684103,-500.0,0.00017013,2]
[354322206,1740408684113,-500.0,0.00017013,2]
[354322207,1740408684127,-1252.34,0.00017013,2]
[354322208,1740408684137,-500.0,0.00017013,2]
[354322209,1740408684147,-2456.73,0.00017013,2]
[354322210,1740408684156,-563.66,0.00017013,2]
[354322211,1740408684167,-2322.07,0.00017013,2]
[354322212,1740408684177,-1387.77,0.00017013,2]
[354322213,1740408684187,-1289.44,0.00017013,2]
[354322214,1740408684197,-669.99,0.00017013,2]
[354322215,1740408684208,-1314.42,0.00017013,2]
[354322216,1740408684218,-384.86923286,0.00017013,2]
[354322217,1740408684227,-1092.99,0.00017013,2]
[354322218,1740408684236,-500.0,0.00017013,2]
[354322219,1740408684247,-1353.03,0.00017013,2]
[354322220,1740408684257,-523.70739168,0.00017013,2]
[354322221,1740408684267,-687.08,0.00017013,2]
[354322222,1740408684277,-1198.61,0.00017013,2]
[354322223,1740408684287,-500.0,0.00017013,2]
[354322224,1740408684303,-837.42,0.00017013,2]
[354322225,1740408684313,-500.0,0.00017013,2]
[354322226,1740408684324,-2373.17,0.00017013,2]
[354322227,1740408684335,-500.0,0.00017013,2]
[354322228,1740408684345,-1253.26,0.00017013,2]
[354322229,1740408684355,-1358.45,0.00017013,2]
[354322230,1740408684366,-500.0,0.00017013,2]
[354322231,1740408684376,-1016.84,0.00017013,2]
[354322232,1740408684387,-500.0,0.00017013,2]
[354322233,1740408684397,-1842.63,0.00017013,2]
[354322234,1740408684407,-3100.07,0.00017013,2]
[354322235,1740408684417,-688.57,0.00017013,2]
[354322236,1740408684427,-500.0,0.00017013,2]
[354322237,1740408684437,-949.52,0.00017013,2]
[354322238,1740408684447,-500.0,0.00017013,2]
[354322239,1740408684457,-1387.0,0.00017013,2]
[354322240,1740408684467,-524.98,0.00017013,2]
[354322241,1740408684476,-1332.09,0.00017013,2]
[354322242,1740408684486,-500.0,0.00017013,2]
[354322243,1740408684496,-500.0,0.00017013,2]
[354322244,1740408684507,-2190.36,0.00017013,2]
[354322245,1740408684517,-500.0,0.00017013,2]
[354322246,1740408684527,-1398.63,0.00017013,2]
[354322247,1740408684538,-566.65,0.00017013,2]
[354322248,1740408684553,-2208.91,0.00017013,2]
[354322249,1740408684563,-1268.58,0.00017013,2]
[354322250,1740408684574,-2023.71,0.00017013,2]
[354322251,1740408684585,-500.0,0.00017013,2]
[354322252,1740408684596,-1286.76,0.00017013,2]
[354322253,1740408684606,-500.0,0.00017013,2]
[354322254,1740408684616,-500.0,0.00017013,2]
[354322255,1740408684626,-2373.16,0.00017013,2]
[354322256,1740408684636,-500.0,0.00017013,2]
[354322257,1740408684646,-1370.27,0.00017013,2]
[354322258,1740408684657,-782.35,0.00017013,2]
[354322259,1740408684667,-1388.45,0.00017013,2]
[354322260,1740408684677,-1000.0,0.00017021,2]
[354322261,1740408684687,-1000.0,0.00017038,2]
[354322262,1740408684696,-1399.62,0.00017072,2]
[354322263,1740408684706,-4161.1559065,0.00017078,2]
[354322264,1740408684716,-277.1,0.00017093,2]
[354322265,1740408684725,-500.0,0.00017093,2]
[354322266,1740408684734,-500.0,0.00017093,2]
[354322267,1740408684744,-500.0,0.00017093,2]
[354322268,1740408684753,-500.0,0.00017093,2]
[354322269,1740408684762,-500.0,0.00017093,2]
[354322270,1740408684772,-606.94,0.00017093,2]
[354322271,1740408684781,-500.0,0.00017093,2]
[354322272,1740408684790,-500.0,0.00017095,7]
[354322273,1740408684803,-500.0,0.00017095,2]
[354322274,1740408684812,-500.0,0.00017095,2]
[354322275,1740408684821,-502.81154856,0.00017095,2]
[354322276,1740408684830,-500.0,0.00017095,2]
[354322277,1740408684839,-500.0,0.00017095,2]
[354322278,1740408684849,-500.0,0.00017095,2]
[354322279,1740408684859,-500.0,0.00017095,2]
[354322280,1740408684867,-500.0,0.00017095,2]
[354322281,1740408684876,-513.48,0.00017095,2]
[354322282,1740408684886,-500.0,0.00017095,2]
[354322283,1740408684895,-705.72,0.00017095,2]
[354322284,1740408684904,-500.0,0.00017095,2]
[354322285,1740408684913,-700.78,0.00017095,2]
[354322286,1740408684923,-500.0,0.00017095,2]
[354322287,1740408684932,-409.47748591,0.00017095,2]
[354322288,1740408684942,-500.0,0.00017095,2]
[354322289,1740408684951,-500.0,0.00017095,2]
[354322290,1740408684960,-552.51,0.00017095,2]
[354322291,1740408684970,-871.23,0.00017095,2]
[354322292,1740408684979,-500.0,0.00017095,2]
[354322293,1740408684988,-500.0,0.00017095,2]
[354322294,1740408684998,-500.0,0.00017095,2]
[354322295,1740408685008,-910.6,0.00017095,2]
[354322296,1740408685018,-500.0,0.00017095,2]
[354322297,1740408685028,-500.0,0.00017095,2]
[354322298,1740408685037,-514.8,0.00017095,2]
[354322299,1740408685051,-625.53,0.00017095,2]
[354322300,1740408685060,-500.0,0.00017095,2]
[354322301,1740408685070,-500.0,0.00017095,2]
[354322302,1740408685079,-500.0,0.00017095,2]
[354322303,1740408685089,-508.9,0.00017095,2]
[354322304,1740408685099,-500.0,0.00017095,2]
[354322305,1740408685107,-464.0181926,0.00017095,2]
[354322306,1740408685118,-658.85,0.00017095,2]
[354322307,1740408685127,-500.0,0.00017095,2]
[354322308,1740408685137,-647.16,0.00017095,2]
[354322309,1740408685151,-500.0,0.00017095,2]
[354322310,1740408685160,-500.0,0.00017095,2]
[354322311,1740408685170,-792.13,0.00017095,2]
[354322312,1740408685180,-500.0,0.00017095,2]
[354322313,1740408685189,-500.0,0.00017095,2]
[354322314,1740408685199,-500.0,0.00017095,2]
[354322315,1740408685209,-500.0,0.00017095,2]
[354322316,1740408685220,-500.0,0.00017095,2]
[354322317,1740408685229,-685.76,0.00017095,2]
[354322318,1740408685239,-500.0,0.00017095,2]
[354322319,1740408685250,-500.0,0.00017095,2]
[354322320,1740408685260,-500.0,0.00017095,2]
[354322321,1740408685269,-500.0,0.00017095,2]
[354322322,1740408685280,-176.32671299,0.00017095,2]
[354322323,1740408685290,-500.0,0.00017095,2]
[354322324,1740408685304,-500.0,0.00017095,2]
[354322325,1740408685314,-500.0,0.00017095,2]
[354322326,1740408685325,-713.57,0.00017095,2]
[354322327,1740408685335,-500.0,0.00017095,2]
[354322328,1740408685345,-792.45,0.00017095,2]
[354322329,1740408685355,-516.41,0.00017095,2]
[354322330,1740408685366,-500.0,0.00017095,2]
[354322331,1740408685376,-500.0,0.00017095,2]
[354322332,1740408685386,-500.0,0.00017095,2]
[354322333,1740408685396,-977.59,0.00017095,2]
[354322334,1740408685406,-500.33,0.00017095,2]
[354322335,1740408685416,-688.78,0.00017095,2]
[354322336,1740408685426,-500.0,0.00017095,2]
[354322337,1740408685436,-723.37,0.00017095,2]
[354322338,1740408685446,-1029.83,0.00017095,2]
[354322339,1740408685456,-603.83,0.00017095,2]
[354322340,1740408685466,-603.78,0.00017095,2]
[354322341,1740408685475,-500.0,0.00017095,2]
[354322342,1740408685485,-554.99,0.00017095,2]
[354322343,1740408685494,-500.0,0.00017095,2]
[354322344,1740408685505,-507.08,0.00017095,2]
[354322345,1740408685515,-613.4,0.00017095,2]
[354322346,1740408685524,-987.03,0.00017095,2]
[354322347,1740408685534,-554.99,0.00017095,2]
[354322348,1740408685543,-621.32,0.00017095,2]
[354322349,1740408685557,-500.0,0.00017095,2]
[354322350,1740408685566,-500.0,0.00017095,2]
[354322351,1740408685576,-500.0,0.00017095,2]
[354322352,1740408685586,-500.0,0.00017095,2]
[354322353,1740408685595,-500.0,0.00017095,2]
[354322354,1740408685605,-807.75,0.00017095,2]
[354322355,1740408685614,-947.05,0.00017095,2]
[354322356,1740408685624,-500.0,0.00017095,2]
[354322357,1740408685634,-500.0,0.00017095,2]
[354322358,1740408685644,-630.89,0.00017095,2]
[354322359,1740408685655,-603.05,0.00017095,2]
[354322360,1740408685665,-500.0,0.00017095,2]
[354322361,1740408685675,-500.0,0.00017095,2]
[354322362,1740408685685,-500.0,0.00017095,2]
[354322363,1740408685695,-1132.31,0.00017095,2]
[354322364,1740408685705,-500.0,0.00017095,2]
[354322365,1740408685715,-830.88,0.00017095,2]
[354322366,1740408685724,-621.43,0.00017095,2]
[354322367,1740408685734,-500.0,0.00017095,2]
[354322368,1740408685743,-556.24,0.00017095,2]
[354322369,1740408685753,-514.91,0.00017095,2]
[354322370,1740408685762,-304.05340317,0.00017095,2]
[354322371,1740408685773,-708.48,0.00017095,2]
[354322372,1740408685783,-500.0,0.00017095,2]
[354322373,1740408685793,-659.89,0.00017095,2]
[354322374,1740408685807,-895.1,0.00017095,2]
[354322375,1740408685817,-857.63,0.00017095,2]
[354322376,1740408685826,-306.792949,0.00017095,2]
[354322377,1740408685836,-500.0,0.00017095,2]
[354322378,1740408685846,-500.0,0.00017095,2]
[354322379,1740408685856,-500.0,0.00017095,2]
[354322380,1740408685866,-500.0,0.00017095,2]
[354322381,1740408685875,-421.813031,0.00017095,2]
[354322382,1740408685885,-542.71,0.00017095,2]
[354322383,1740408685895,-500.0,0.00017095,2]
[354322384,1740408685904,-500.0,0.00017095,2]
[354322385,1740408685914,-500.0,0.00017095,2]
[354322386,1740408685924,-500.0,0.00017095,2]
[354322387,1740408685933,-500.0,0.00017095,2]
[354322388,1740408685943,-739.25,0.00017095,2]
[354322389,1740408685952,-1051.43,0.00017095,2]
[354322390,1740408685961,-552.82,0.00017095,2]
[354322391,1740408685971,-500.0,0.00017095,2]
[354322392,1740408685980,-952.15,0.00017095,2]
[354322393,1740408685990,-500.0,0.00017095,2]
[354322394,1740408685999,-500.0,0.00017095,2]
[354322395,1740408686010,-989.53,0.00017095,2]
[354322396,1740408686020,-500.0,0.00017095,2]
[354322397,1740408686030,-785.99,0.00017095,2]
[354322398,1740408686041,-500.0,0.00017095,2]
[354322399,1740408686056,-574.6,0.00017095,2]
[354322400,1740408686067,-633.67389646,0.00017095,2]
[354322401,1740408686078,-1016.6,0.00017095,2]
[354322402,1740408686089,-1187.96,0.00017095,2]
[354322403,1740408686099,-918.17,0.00017095,2]
[354322404,1740408686109,-500.0,0.00017095,2]
[354322405,1740408686120,-510.92,0.00017095,2]
[354322406,1740408686130,-1105.56,0.00017095,2]
[354322407,1740408686142,-883.83,0.00017095,2]
[354322408,1740408686153,-500.0,0.00017095,2]
[354322409,1740408686166,-500.0,0.00017095,2]
[354322410,1740408686176,-810.38,0.00017095,2]
[354322411,1740408686186,-594.95,0.00017095,2]
[354322412,1740408686196,-708.88,0.00017095,2]
[354322413,1740408686206,-500.0,0.00017095,2]
[354322414,1740408686218,-560.44,0.00017095,2]
[354322415,1740408686228,-249.14461279,0.00017095,2]
[354322416,1740408686238,-757.18,0.00017095,2]
[354322417,1740408686248,-1499.95,0.00017095,2]
[354322418,1740408686257,-500.0,0.00017095,2]
[354322419,1740408686267,-1949.65,0.00017095,2]
[354322420,1740408686277,-568.43,0.00017095,2]
[354322421,1740408686287,-1029.07,0.00017095,2]
[354322422,1740408686297,-500.0,0.00017095,2]
[354322423,1740408686308,-1432.1,0.00017095,2]
[354322424,1740408686317,-561.96,0.00017095,2]
[354322425,1740408686327,-2330.4,0.00017095,2]
[354322426,1740408686337,-645.32,0.00017095,2]
[354322427,1740408686347,-500.0,0.00017095,2]
[354322428,1740408686356,-500.0,0.00017095,2]
[354322429,1740408686366,-933.09,0.00017095,2]
[354322430,1740408686376,-500.0,0.00017095,2]
[354322431,1740408686386,-2078.19,0.00017095,2]
[354322432,1740408686395,-1012.69,0.00017095,2]
[354322433,1740408686404,-500.0,0.00017095,2]
[354322434,1740408686413,-500.0,0.00017095,2]
[354322435,1740408686423,-612.9,0.00017095,2]
[354322436,1740408686432,-1906.14,0.00017095,2]
[354322437,1740408686441,-980.0,0.00017095,2]
[354322438,1740408686451,-508.72,0.00017095,2]
[354322439,1740408686461,-547.65,0.00017095,2]
[354322440,1740408686471,-771.13,0.00017095,2]
[354322441,1740408686480,-867.19,0.00017095,2]
[354322442,1740408686490,-668.94,0.00017095,2]
[354322443,1740408686499,-500.0,0.00017095,2]
[354322444,1740408686508,-1409.2,0.00017095,2]
[354322445,1740408686518,-2087.51,0.00017095,2]
[354322446,1740408686529,-1928.05,0.00017095,2]
[354322447,1740408686539,-1421.34,0.00017095,2]
[354322448,1740408686549,-577.13,0.00017095,2]
[354322449,1740408686559,-1844.12,0.00017095,2]
[354322450,1740408686568,-965.43,0.00017095,2]
[354322451,1740408686578,-582.73,0.00017095,2]
[354322452,1740408686587,-737.28,0.00017095,2]
[354322453,1740408686596,-281.89411271,0.00017095,2]
[354322454,1740408686606,-849.78,0.00017095,2]
[354322455,1740408686615,-2064.96,0.00017095,2]
[354322456,1740408686625,-1202.68,0.00017095,2]
[354322457,1740408686634,-829.61,0.00017095,2]
[354322458,1740408686644,-1638.47,0.00017095,2]
[354322459,1740408686653,-634.72,0.00017095,2]
[354322460,1740408686663,-595.96696747,0.00017095,2]
[354322461,1740408686672,-500.0,0.00017095,2]
[354322462,1740408686682,-2101.64,0.00017095,2]
[354322463,1740408686820,-1075.91,0.00017095,2]
[354322464,1740408686831,-1786.12,0.00017095,2]
[354322465,1740408686840,-1063.59,0.00017095,2]
[354322466,1740408686850,-500.0,0.00017095,2]
[354322467,1740408686859,-500.0,0.00017095,2]
[354322468,1740408686869,-623.6,0.00017095,2]
[354322469,1740408686879,-552.83,0.00017095,2]
[354322470,1740408686889,-500.0,0.00017095,2]
[354322471,1740408686899,-548.02,0.00017095,2]
[354322472,1740408686909,-564.88,0.00017095,2]
[354322473,1740408686919,-1000.72,0.00017095,2]
[354322474,1740408686928,-506.48,0.00017095,2]
[354322475,1740408686939,-500.0,0.00017095,2]
[354322476,1740408686949,-1830.0,0.00017095,2]
[354322477,1740408686958,-500.0,0.00017095,2]
[354322478,1740408686967,-799.95,0.00017095,2]
[354322479,1740408686977,-601.76,0.00017095,2]
[354322480,1740408686986,-1492.05,0.00017095,2]
[354322481,1740408686995,-2916.32,0.00017095,2]
[354322482,1740408687004,-500.0,0.00017095,2]
[354322483,1740408687013,-953.1,0.00017095,2]
[354322484,1740408687023,-1485.8,0.00017095,2]
[354322485,1740408687032,-500.0,0.00017095,2]
[354322486,1740408687041,-500.0,0.00017095,2]
[354322487,1740408687054,-1831.82,0.00017095,2]
[354322488,1740408687063,-1922.29,0.00017095,2]
[354322489,1740408687073,-500.0,0.00017095,2]
[354322490,1740408687082,-558.93,0.00017095,2]
[354322491,1740408687092,-853.69,0.00017095,2]
[354322492,1740408687101,-2226.08,0.00017095,2]
[354322493,1740408687110,-1727.17,0.00017095,2]
[354322494,1740408687121,-1193.44,0.00017095,2]
[354322495,1740408687133,-1260.45,0.00017095,2]
[354322496,1740408687142,-1732.9,0.00017095,2]
[354322497,1740408687151,-837.39,0.00017095,2]
[354322498,1740408687162,-500.0,0.00017095,2]
[354322499,1740408687172,-2820.67,0.00017095,2]
[354322500,1740408687182,-1814.26,0.00017095,2]
[354322501,1740408687192,-1781.49,0.00017095,2]
[354322502,1740408687202,-1378.99,0.00017095,2]
[354322503,1740408687213,-542.06,0.00017095,2]
[354322504,1740408687223,-1316.8,0.00017095,2]
[354322505,1740408687232,-500.0,0.00017095,2]
[354322506,1740408687242,-503.68,0.00017095,2]
[354322507,1740408687251,-902.17,0.00017095,2]
[354322508,1740408687260,-1113.82,0.00017095,2]
[354322509,1740408687270,-1020.41,0.00017095,2]
[354322510,1740408687279,-855.0,0.00017095,2]
[354322511,1740408687289,-2365.06,0.00017095,2]
[354322512,1740408687300,-1788.53,0.00017095,2]
[354322513,1740408687309,-2236.0,0.00017095,2]
[354322514,1740408687319,-614.29,0.00017095,2]
[354322515,1740408687329,-670.7,0.00017095,2]
[354322516,1740408687338,-500.0,0.00017095,2]
[354322517,1740408687348,-3047.91,0.00017095,2]
[354322518,1740408687357,-500.0,0.00017095,2]
[354322519,1740408687367,-2393.53,0.00017095,2]
[354322520,1740408687377,-813.27,0.00017095,2]
[354322521,1740408687386,-500.0,0.00017095,2]
[354322522,1740408687395,-1924.63,0.00017095,2]
[354322523,1740408687405,-2168.8,0.00017095,2]
[354322524,1740408687415,-346.31131484,0.00017095,2]
[354322525,1740408687424,-2139.66,0.00017095,2]
[354322526,1740408687434,-500.0,0.00017095,2]
[354322527,1740408687443,-500.0,0.00017095,2]
[354322528,1740408687452,-704.57,0.00017095,2]
[354322529,1740408687462,-549.2,0.00017095,2]
[354322530,1740408687471,-926.55,0.00017095,2]
[354322531,1740408687480,-2142.33,0.00017095,2]
[354322532,1740408687490,-1890.91,0.00017095,2]
[354322533,1740408687500,-500.0,0.00017095,2]
[354322534,1740408687509,-1950.51,0.00017095,2]
[354322535,1740408687519,-2194.28,0.00017095,2]
[354322536,1740408687529,-500.0,0.00017095,2]
[354322537,1740408687538,-609.67243788,0.00017095,2]
[354322538,1740408687547,-560.47,0.00017095,2]
[354322539,1740408687558,-609.16,0.00017095,2]
[354322540,1740408687567,-1914.76,0.00017095,2]
[354322541,1740408687577,-565.85,0.00017095,2]
[354322542,1740408687586,-515.26,0.00017095,2]
[354322543,1740408687596,-910.63,0.00017095,2]
[354322544,1740408687605,-500.0,0.00017095,2]
[354322545,1740408687615,-500.0,0.00017095,2]
[354322546,1740408687624,-2295.31,0.00017095,2]
[354322547,1740408687634,-655.3,0.00017095,2]
[354322548,1740408687643,-544.29,0.00017095,2]
[354322549,1740408687652,-2211.12,0.00017095,2]
[354322550,1740408687661,-1974.62,0.00017095,2]
[354322551,1740408687670,-1141.38,0.00017095,2]
[354322552,1740408687680,-500.0,0.00017095,2]
[354322553,1740408687689,-500.0,0.00017095,2]
[354322554,1740408687698,-1252.34,0.00017095,2]
[354322555,1740408687707,-500.0,0.00017095,2]
[354322556,1740408687716,-2456.73,0.00017095,2]
[354322557,1740408687726,-563.66,0.00017095,2]
[354322558,1740408687735,-2322.07,0.00017095,2]
[354322559,1740408687744,-1387.77,0.00017095,2]
[354322560,1740408687754,-1289.44,0.00017095,2]
[354322561,1740408687763,-669.99,0.00017095,2]
[354322562,1740408687773,-1314.42,0.00017095,2]
[354322563,1740408687782,-1092.99,0.00017095,2]
[354322564,1740408687792,-500.0,0.00017095,2]
[354322565,1740408687805,-1353.03,0.00017095,2]
[354322566,1740408687814,-687.08,0.00017095,2]
[354322567,1740408687824,-1198.61,0.00017095,2]
[354322568,1740408687834,-500.0,0.00017095,2]
[354322569,1740408687845,-837.42,0.00017095,2]
[354322570,1740408687855,-500.0,0.00017095,2]
[354322571,1740408687864,-2373.17,0.00017095,2]
[354322572,1740408687873,-500.0,0.00017095,2]
[354322573,1740408687882,-1253.26,0.00017095,2]
[354322574,1740408687892,-1358.45,0.00017095,2]
[354322575,1740408687902,-500.0,0.00017095,2]
[354322576,1740408687911,-1016.84,0.00017095,2]
[354322577,1740408687919,-1198.63,0.00017095,2]
[354322578,1740408687929,-574.4056667,0.00017095,2]
[354322579,1740408687938,-1842.63,0.00017095,2]
[354322580,1740408687947,-3100.07,0.00017095,2]
[354322581,1740408687956,-688.57,0.00017095,2]
[354322582,1740408687966,-500.0,0.00017095,2]
[354322583,1740408687975,-949.52,0.00017095,2]
[354322584,1740408687984,-500.0,0.00017095,2]
[354322585,1740408687994,-524.98,0.00017095,2]
[354322586,1740408688003,-1332.09,0.00017095,2]
[354322587,1740408688012,-1387.0,0.00017095,2]
[354322588,1740408688022,-500.0,0.00017095,2]
[354322589,1740408688031,-3353.19,0.00017095,2]
[354322590,1740408688040,-500.0,0.00017095,2]
[354322591,1740408688051,-2190.36,0.00017095,2]
[354322592,1740408688061,-631.23,0.00017095,2]
[354322593,1740408688070,-1398.63,0.00017095,2]
[354322594,1740408688081,-566.65,0.00017095,2]
[354322595,1740408688091,-2208.91,0.00017095,2]
[354322596,1740408688100,-1268.58,0.00017095,2]
[354322597,1740408688110,-2023.71,0.00017095,2]
[354322598,1740408688121,-500.0,0.00017095,2]
[354322599,1740408688130,-1286.76,0.00017095,2]
[354322600,1740408688143,-500.0,0.00017095,2]
[354322601,1740408688153,-500.0,0.00017095,2]
[354322602,1740408688163,-2373.16,0.00017095,2]
[354322603,1740408688172,-500.0,0.00017095,2]
[354322604,1740408688183,-1370.27,0.00017095,2]
[354322605,1740408688192,-782.35,0.00017095,2]
[354322606,1740408688202,-1388.45,0.00017095,2]
[354322607,1740408688212,-5779.52635391,0.00017105,2]
[354322608,1740408688223,-500.98040472,0.00017121,2]
[354322609,1740408688233,-193.27997254,0.00017121,2]
[354322610,1740408688242,-401.69722465,0.00017176,2]
[354322611,1740408688251,-509.41696137,0.00017176,2]
[354322612,1740408688261,-500.0,0.00017176,2]
[354322613,1740408688270,-548.40926486,0.00017176,2]
[354322614,1740408688279,-500.0,0.00017176,2]
[354322615,1740408688289,-577.29015135,0.00017176,2]
[354322616,1740408688298,-1499.95,0.00017177,2]
[354322617,1740408688310,-1949.65,0.00017177,2]
[354322618,1740408688319,-1432.1,0.00017177,2]
[354322619,1740408688329,-2330.4,0.00017177,2]
[354322620,1740408688338,-933.09,0.00017177,2]
[354322621,1740408688348,-1906.14,0.00017177,2]
[354322622,1740408688357,-2087.51,0.00017177,2]
[354322623,1740408688367,-737.28,0.00017177,2]
[354322624,1740408688376,-634.72,0.00017177,2]
[354322625,1740408688386,-500.0,0.00017177,2]
[354322626,1740408688395,-1000.72,0.00017177,2]
[354322627,1740408688404,-2916.32,0.00017177,2]
[354322628,1740408688414,-1922.29,0.00017177,2]
[354322629,1740408688424,-1193.44,0.00017177,2]
[354322630,1740408688434,-1316.8,0.00017177,2]
[354322631,1740408688443,-1924.63,0.00017177,2]
[354322632,1740408688453,-2194.28,0.00017177,2]
[354322633,1740408688462,-1198.63,0.00017177,2]
[354322634,1740408688472,-3353.19,0.00017177,2]
[354322635,1740408688481,-500.0,0.00017178,7]
[354322636,1740408688491,-500.0,0.00017178,2]
[354322637,1740408688500,-500.0,0.00017178,2]
[354322638,1740408688510,-165.11,0.00017178,2]
[354322639,1740408688519,-314.79217594,0.00017178,2]
[354322640,1740408688528,-513.48,0.00017178,2]
[354322641,1740408688537,-705.72,0.00017178,2]